[Event "Titled Tuesday Blitz May 2 Late 2023"]
[White "Kourkoulos-Arditis, Stamatis"]
[Black "Terry, Renato"]
[WhiteFideId "4221990"]
[BlackFideId "3803457"]
[WhiteElo "2400"]
[BlackElo "2575"]
[Result "0-1"]
[Round "05"]
[TimeControl "180+2"]
[Date "2023.05.02"]
[WhiteClock "0:00:03"]
[BlackClock "0:00:04"]

1. e4 {[%clk 0:02:57]}  e6 {[%clk 0:03:00]} 2. d4 {[%clk 0:02:56]}  d5 {[%clk 0:03:00]} 3. Nd2 {[%clk 0:02:55]}  Be7 {[%clk 0:03:00]} 4. Ngf3 {[%clk 0:02:51]}  Nf6 {[%clk 0:03:00]} 5. e5 {[%clk 0:02:52]}  Nfd7 {[%clk 0:03:01]} 6. Bd3 {[%clk 0:02:52]}  c5 {[%clk 0:03:02]} 7. c3 {[%clk 0:02:52]}  Nc6 {[%clk 0:03:02]} 8. O-O {[%clk 0:02:52]}  g5 {[%clk 0:03:03]} 9. dxc5 {[%clk 0:02:51]}  Ndxe5 {[%clk 0:03:03]} 10. Nxe5 {[%clk 0:02:50]}  Nxe5 {[%clk 0:03:04]} 11. Nb3 {[%clk 0:02:49]}  Nxd3 {[%clk 0:03:04]} 12. Qxd3 {[%clk 0:02:49]}  f6 {[%clk 0:03:04]} 13. f4 {[%clk 0:02:44]}  gxf4 {[%clk 0:03:00]} 14. Bxf4 {[%clk 0:02:45]}  e5 {[%clk 0:03:00]} 15. Bxe5 {[%clk 0:02:34]}  fxe5 {[%clk 0:02:58]} 16. Qf3 {[%clk 0:02:34]}  Be6 {[%clk 0:02:36]} 17. Qh5+ {[%clk 0:02:31]}  Kd7 {[%clk 0:02:36]} 18. Qxe5 {[%clk 0:02:31]}  Qc7 {[%clk 0:02:29]} 19. Qe3 {[%clk 0:01:56]}  Rae8 {[%clk 0:02:26]} 20. Rae1 {[%clk 0:01:50]}  Bd8 {[%clk 0:02:01]} 21. Qh6 {[%clk 0:01:15]}  Rhg8 {[%clk 0:00:36]} 22. Nd4 {[%clk 0:01:13]}  Qxc5 {[%clk 0:00:13]} 23. Rxe6 {[%clk 0:01:12]}  Kc8 {[%clk 0:00:13]} 24. Qxh7 {[%clk 0:00:57]}  Bb6 {[%clk 0:00:09]} 25. Rxe8+ {[%clk 0:00:56]}  Rxe8 {[%clk 0:00:10]} 26. Qf7 {[%clk 0:00:53]}  Qb5 {[%clk 0:00:08]} 27. Kh1 {[%clk 0:00:49]}  Bxd4 {[%clk 0:00:08]} 28. cxd4 {[%clk 0:00:50]}  Kb8 {[%clk 0:00:09]} 29. h3 {[%clk 0:00:45]}  a6 {[%clk 0:00:09]} 30. b3 {[%clk 0:00:42]}  Re2 {[%clk 0:00:09]} 31. Rf2 {[%clk 0:00:39]}  Re4 {[%clk 0:00:10]} 32. Qf8+ {[%clk 0:00:38]}  Ka7 {[%clk 0:00:10]} 33. Qc5+ {[%clk 0:00:38]}  Qxc5 {[%clk 0:00:10]} 34. dxc5 {[%clk 0:00:39]}  d4 {[%clk 0:00:10]} 35. Rd2 {[%clk 0:00:38]}  b6 {[%clk 0:00:10]} 36. cxb6+ {[%clk 0:00:37]}  Kxb6 {[%clk 0:00:11]} 37. g4 {[%clk 0:00:37]}  Kc5 {[%clk 0:00:12]} 38. Kg2 {[%clk 0:00:37]}  Kb4 {[%clk 0:00:12]} 39. Kf3 {[%clk 0:00:37]}  Re3+ {[%clk 0:00:11]} 40. Kf4 {[%clk 0:00:37]}  Kc3 {[%clk 0:00:12]} 41. Rh2 {[%clk 0:00:35]}  Re8 {[%clk 0:00:05]} 42. g5 {[%clk 0:00:36]}  d3 {[%clk 0:00:05]} 43. g6 {[%clk 0:00:30]}  Re2 {[%clk 0:00:03]} 44. Rh1 {[%clk 0:00:30]}  d2 {[%clk 0:00:03]} 45. Rd1 {[%clk 0:00:29]}  Re1 {[%clk 0:00:02]} 46. Rxd2 {[%clk 0:00:29]}  Kxd2 {[%clk 0:00:03]} 47. h4 {[%clk 0:00:29]}  Rh1 {[%clk 0:00:03]} 48. Kg5 {[%clk 0:00:24]}  Rg1+ {[%clk 0:00:02]} 49. Kf6 {[%clk 0:00:24]}  Rf1+ {[%clk 0:00:02]} 50. Ke6 {[%clk 0:00:24]}  Re1+ {[%clk 0:00:03]} 51. Kf7 {[%clk 0:00:24]}  Rf1+ {[%clk 0:00:03]} 52. Ke6 {[%clk 0:00:16]}  Re1+ {[%clk 0:00:04]} 53. Kf5 {[%clk 0:00:14]}  Rf1+ {[%clk 0:00:03]} 54. Kg5 {[%clk 0:00:13]}  Rg1+ {[%clk 0:00:02]} 55. Kh6 {[%clk 0:00:13]}  Ke3 {[%clk 0:00:02]} 56. h5 {[%clk 0:00:12]}  Kf4 {[%clk 0:00:01]} 57. Kg7 {[%clk 0:00:11]}  Kg5 {[%clk 0:00:01]} 58. h6 {[%clk 0:00:11]}  Rc1 {[%clk 0:00:02]} 59. h7 {[%clk 0:00:06]}  Rc7+ {[%clk 0:00:02]} 60. Kg8 {[%clk 0:00:05]}  Kxg6 {[%clk 0:00:02]} 61. h8=N+ {[%clk 0:00:05]}  Kf6 {[%clk 0:00:03]} 62. b4 {[%clk 0:00:04]}  Rb7 {[%clk 0:00:03]} 63. a3 {[%clk 0:00:04]}  Ra7 {[%clk 0:00:03]} 64. a4 {[%clk 0:00:03]}  Rg7+ {[%clk 0:00:03]} 65. Kf8 {[%clk 0:00:03]}  Rb7 {[%clk 0:00:04]} 0-1


[Site "https://www.chess.com"]

[Event "Titled Tuesday Blitz May 2 Late 2023"]
[White "Prohaszka, Peter"]
[Black "Duda, Jan-Krzysztof"]
[WhiteFideId "726265"]
[BlackFideId "1170546"]
[WhiteElo "2626"]
[BlackElo "2790"]
[Result "1-0"]
[Round "05"]
[TimeControl "180+2"]
[Date "2023.05.02"]
[WhiteClock "0:00:09"]
[BlackClock "0:00:03"]

1. d4 {[%clk 0:02:59]}  Nf6 {[%clk 0:02:59]} 2. Nf3 {[%clk 0:02:56]}  g6 {[%clk 0:02:57]} 3. c3 {[%clk 0:02:52]}  d6 {[%clk 0:02:54]} 4. Bg5 {[%clk 0:02:53]}  Nbd7 {[%clk 0:02:54]} 5. Nbd2 {[%clk 0:02:53]}  h6 {[%clk 0:02:54]} 6. Bh4 {[%clk 0:02:52]}  g5 {[%clk 0:02:53]} 7. Bg3 {[%clk 0:02:52]}  Nh5 {[%clk 0:02:44]} 8. e4 {[%clk 0:02:52]}  Bg7 {[%clk 0:02:41]} 9. Bc4 {[%clk 0:02:50]}  e6 {[%clk 0:02:41]} 10. Nf1 {[%clk 0:02:34]}  Qe7 {[%clk 0:02:40]} 11. N3d2 {[%clk 0:02:27]}  Nxg3 {[%clk 0:02:35]} 12. Nxg3 {[%clk 0:02:27]}  Nf6 {[%clk 0:02:26]} 13. Be2 {[%clk 0:02:17]}  Bd7 {[%clk 0:02:24]} 14. a4 {[%clk 0:02:16]}  O-O-O {[%clk 0:02:15]} 15. a5 {[%clk 0:02:16]}  Kb8 {[%clk 0:02:15]} 16. Qb3 {[%clk 0:02:04]}  c5 {[%clk 0:02:04]} 17. dxc5 {[%clk 0:01:25]}  dxc5 {[%clk 0:02:05]} 18. a6 {[%clk 0:01:09]}  b6 {[%clk 0:02:03]} 19. Bb5 {[%clk 0:01:07]}  h5 {[%clk 0:01:49]} 20. O-O-O {[%clk 0:01:00]}  h4 {[%clk 0:01:46]} 21. Ne2 {[%clk 0:01:00]}  h3 {[%clk 0:01:46]} 22. gxh3 {[%clk 0:00:54]}  Bc8 {[%clk 0:01:45]} 23. f3 {[%clk 0:00:48]}  Rxh3 {[%clk 0:01:43]} 24. Ng3 {[%clk 0:00:35]}  Bh6 {[%clk 0:01:33]} 25. Kb1 {[%clk 0:00:34]}  g4 {[%clk 0:01:21]} 26. Nc4 {[%clk 0:00:20]}  Bf4 {[%clk 0:01:21]} 27. e5 {[%clk 0:00:15]}  Nd5 {[%clk 0:00:40]} 28. fxg4 {[%clk 0:00:15]}  Nc7 {[%clk 0:00:25]} 29. Bc6 {[%clk 0:00:09]}  Bxa6 {[%clk 0:00:11]} 30. Nxb6 {[%clk 0:00:09]}  axb6 {[%clk 0:00:12]} 31. Qxb6+ {[%clk 0:00:09]}  Kc8 {[%clk 0:00:13]} 32. Ne4 {[%clk 0:00:10]}  Bxe5 {[%clk 0:00:09]} 33. Nxc5 {[%clk 0:00:10]}  Rxh2 {[%clk 0:00:03]} 34. Bb7+ {[%clk 0:00:09]}  Kb8 {[%clk 0:00:03]} 35. Bxa6+ {[%clk 0:00:09]} 1-0


[Site "https://www.chess.com"]

[Event "Titled Tuesday Blitz May 2 Late 2023"]
[White "Simonian, Hrair"]
[Black "Sargsyan, Shant"]
[WhiteFideId "13302337"]
[BlackFideId "13306766"]
[WhiteElo "2447"]
[BlackElo "2628"]
[Result "0-1"]
[Round "05"]
[TimeControl "180+2"]
[Date "2023.05.02"]
[WhiteClock "0:00:10"]
[BlackClock "0:01:07"]

1. e4 {[%clk 0:03:00]}  g5 {[%clk 0:02:58]} 2. d4 {[%clk 0:02:58]}  Bg7 {[%clk 0:02:58]} 3. Nc3 {[%clk 0:02:54]}  h6 {[%clk 0:02:56]} 4. h4 {[%clk 0:02:41]}  gxh4 {[%clk 0:02:49]} 5. Nf3 {[%clk 0:02:40]}  d6 {[%clk 0:02:49]} 6. Nxh4 {[%clk 0:02:36]}  Nc6 {[%clk 0:02:49]} 7. Be3 {[%clk 0:02:35]}  e5 {[%clk 0:02:49]} 8. Bb5 {[%clk 0:02:28]}  Bd7 {[%clk 0:02:46]} 9. d5 {[%clk 0:02:28]}  Nce7 {[%clk 0:02:42]} 10. Qg4 {[%clk 0:02:24]}  Bf6 {[%clk 0:02:34]} 11. Nf3 {[%clk 0:01:52]}  c6 {[%clk 0:02:31]} 12. dxc6 {[%clk 0:01:32]}  bxc6 {[%clk 0:02:32]} 13. Qh5 {[%clk 0:01:25]}  cxb5 {[%clk 0:02:31]} 14. O-O-O {[%clk 0:01:25]}  Qc7 {[%clk 0:02:21]} 15. Nh4 {[%clk 0:01:13]}  b4 {[%clk 0:02:20]} 16. Nd5 {[%clk 0:01:06]}  Nxd5 {[%clk 0:02:20]} 17. Rxd5 {[%clk 0:01:06]}  Be6 {[%clk 0:02:20]} 18. Nf5 {[%clk 0:00:52]}  Bxd5 {[%clk 0:02:18]} 19. exd5 {[%clk 0:00:53]}  Ne7 {[%clk 0:02:15]} 20. Nxh6 {[%clk 0:00:51]}  Ng6 {[%clk 0:02:03]} 21. Qf5 {[%clk 0:00:49]}  Bg7 {[%clk 0:02:00]} 22. g4 {[%clk 0:00:38]}  Qd7 {[%clk 0:01:55]} 23. Qf3 {[%clk 0:00:38]}  Bxh6 {[%clk 0:01:55]} 24. Bxh6 {[%clk 0:00:37]}  O-O-O {[%clk 0:01:49]} 25. g5 {[%clk 0:00:37]}  Nf4 {[%clk 0:01:47]} 26. Re1 {[%clk 0:00:35]}  Kb8 {[%clk 0:01:46]} 27. Re4 {[%clk 0:00:35]}  a5 {[%clk 0:01:41]} 28. a3 {[%clk 0:00:35]}  Rc8 {[%clk 0:01:39]} 29. axb4 {[%clk 0:00:20]}  Qa4 {[%clk 0:01:38]} 30. c3 {[%clk 0:00:20]}  f5 {[%clk 0:01:35]} 31. Qe3 {[%clk 0:00:19]}  Qb5 {[%clk 0:01:27]} 32. Rxf4 {[%clk 0:00:16]}  exf4 {[%clk 0:01:26]} 33. Qe7 {[%clk 0:00:16]}  axb4 {[%clk 0:01:22]} 34. Qxd6+ {[%clk 0:00:15]}  Ka8 {[%clk 0:01:22]} 35. Bg7 {[%clk 0:00:13]}  bxc3 {[%clk 0:01:14]} 36. Bxc3 {[%clk 0:00:11]}  Rxc3+ {[%clk 0:01:08]} 37. bxc3 {[%clk 0:00:11]}  Rh1+ {[%clk 0:01:07]} 38. Kc2 {[%clk 0:00:10]}  Qb1+ {[%clk 0:01:07]} 0-1


[Site "https://www.chess.com"]

[Event "Titled Tuesday Blitz May 2 Late 2023"]
[White "Ter-Sahakyan, Samvel"]
[Black "Osinenko, Anton"]
[WhiteFideId "13302531"]
[BlackFideId "4158970"]
[WhiteElo "2566"]
[BlackElo "2294"]
[Result "1-0"]
[Round "05"]
[TimeControl "180+2"]
[Date "2023.05.02"]
[WhiteClock "0:00:33"]
[BlackClock "0:00:02"]

1. d4 {[%clk 0:02:58]}  Nf6 {[%clk 0:03:00]} 2. Nf3 {[%clk 0:02:58]}  b6 {[%clk 0:03:00]} 3. c4 {[%clk 0:02:57]}  Bb7 {[%clk 0:03:00]} 4. Nc3 {[%clk 0:02:57]}  d5 {[%clk 0:03:00]} 5. cxd5 {[%clk 0:02:57]}  Nxd5 {[%clk 0:03:01]} 6. Bg5 {[%clk 0:02:56]}  h6 {[%clk 0:02:32]} 7. Bh4 {[%clk 0:02:56]}  g5 {[%clk 0:02:32]} 8. Bg3 {[%clk 0:02:56]}  Bg7 {[%clk 0:02:33]} 9. e3 {[%clk 0:02:55]}  O-O {[%clk 0:02:32]} 10. h4 {[%clk 0:02:55]}  g4 {[%clk 0:02:30]} 11. Ne5 {[%clk 0:02:55]}  h5 {[%clk 0:02:26]} 12. Bc4 {[%clk 0:02:54]}  Nxc3 {[%clk 0:02:16]} 13. bxc3 {[%clk 0:02:55]}  Nd7 {[%clk 0:02:16]} 14. Ng6 {[%clk 0:02:41]}  Re8 {[%clk 0:02:07]} 15. Nf4 {[%clk 0:02:40]}  Nf6 {[%clk 0:02:04]} 16. O-O {[%clk 0:02:40]}  e6 {[%clk 0:02:02]} 17. a4 {[%clk 0:02:34]}  Qe7 {[%clk 0:02:00]} 18. a5 {[%clk 0:02:34]}  Red8 {[%clk 0:02:00]} 19. Qb3 {[%clk 0:02:30]}  Bh6 {[%clk 0:01:48]} 20. Rfe1 {[%clk 0:02:20]}  Bg7 {[%clk 0:01:05]} 21. Kh2 {[%clk 0:02:20]}  Bf8 {[%clk 0:01:04]} 22. Qc2 {[%clk 0:02:19]}  Be4 {[%clk 0:01:02]} 23. Qb2 {[%clk 0:02:17]}  Bg7 {[%clk 0:01:00]} 24. Nd3 {[%clk 0:02:04]}  Bd5 {[%clk 0:00:49]} 25. Bxd5 {[%clk 0:01:57]}  Nxd5 {[%clk 0:00:50]} 26. e4 {[%clk 0:01:55]}  Nf6 {[%clk 0:00:42]} 27. Nf4 {[%clk 0:01:52]}  e5 {[%clk 0:00:39]} 28. dxe5 {[%clk 0:01:51]}  Qxe5 {[%clk 0:00:40]} 29. Nd5 {[%clk 0:01:51]}  Qe6 {[%clk 0:00:25]} 30. Nxc7 {[%clk 0:01:51]}  Qc6 {[%clk 0:00:24]} 31. Nxa8 {[%clk 0:01:50]}  Nxe4 {[%clk 0:00:24]} 32. Rxe4 {[%clk 0:01:30]}  Qxe4 {[%clk 0:00:16]} 33. axb6 {[%clk 0:01:30]}  axb6 {[%clk 0:00:16]} 34. Nxb6 {[%clk 0:01:29]}  f5 {[%clk 0:00:16]} 35. Ra4 {[%clk 0:01:07]}  Qe1 {[%clk 0:00:16]} 36. Qb3+ {[%clk 0:00:58]}  Kh8 {[%clk 0:00:15]} 37. Qf7 {[%clk 0:00:53]}  f4 {[%clk 0:00:09]} 38. Qxh5+ {[%clk 0:00:39]}  Kg8 {[%clk 0:00:09]} 39. Bxf4 {[%clk 0:00:35]}  Qxf2 {[%clk 0:00:09]} 40. Qxg4 {[%clk 0:00:35]}  Rf8 {[%clk 0:00:03]} 41. Nd5 {[%clk 0:00:33]}  Kh8 {[%clk 0:00:02]} 42. Qh5+ {[%clk 0:00:32]}  Kg8 {[%clk 0:00:02]} 43. Ne7# {[%clk 0:00:33]} 1-0


[Site "https://www.chess.com"]

[Event "Titled Tuesday Blitz May 2 Late 2023"]
[White "Ibarra Jerez, Jose Carlos"]
[Black "Pantev, Veselin"]
[WhiteFideId "2226332"]
[BlackFideId "2901390"]
[WhiteElo "2638"]
[BlackElo "2427"]
[Result "1-0"]
[Round "05"]
[TimeControl "180+2"]
[Date "2023.05.02"]
[WhiteClock "0:02:00"]
[BlackClock "0:01:30"]

1. e4 {[%clk 0:03:00]}  c6 {[%clk 0:02:59]} 2. Nf3 {[%clk 0:03:01]}  d5 {[%clk 0:02:59]} 3. d3 {[%clk 0:03:01]}  Bg4 {[%clk 0:02:58]} 4. h3 {[%clk 0:03:02]}  Bxf3 {[%clk 0:02:59]} 5. Qxf3 {[%clk 0:03:02]}  e6 {[%clk 0:02:59]} 6. g3 {[%clk 0:03:02]}  Nd7 {[%clk 0:02:59]} 7. Bg2 {[%clk 0:03:03]}  Ngf6 {[%clk 0:02:59]} 8. O-O {[%clk 0:03:03]}  Qb6 {[%clk 0:02:56]} 9. exd5 {[%clk 0:03:01]}  cxd5 {[%clk 0:02:56]} 10. c4 {[%clk 0:03:02]}  Bd6 {[%clk 0:02:43]} 11. Nc3 {[%clk 0:03:01]}  Ne5 {[%clk 0:02:43]} 12. Qe2 {[%clk 0:03:01]}  dxc4 {[%clk 0:02:39]} 13. dxc4 {[%clk 0:02:58]}  O-O {[%clk 0:02:30]} 14. Nb5 {[%clk 0:02:37]}  Bb8 {[%clk 0:02:20]} 15. Be3 {[%clk 0:02:37]}  Qa6 {[%clk 0:02:20]} 16. Bc5 {[%clk 0:02:37]}  Re8 {[%clk 0:02:12]} 17. Rfd1 {[%clk 0:02:32]}  Nc6 {[%clk 0:02:05]} 18. b4 {[%clk 0:02:28]}  Qa4 {[%clk 0:02:00]} 19. Rab1 {[%clk 0:02:16]}  Be5 {[%clk 0:01:34]} 20. Rd3 {[%clk 0:02:08]}  a6 {[%clk 0:01:32]} 21. Ra3 {[%clk 0:02:01]}  axb5 {[%clk 0:01:31]} 22. Rxa4 {[%clk 0:02:02]}  bxa4 {[%clk 0:01:30]} 23. Bxc6 {[%clk 0:02:00]} 1-0


[Site "https://www.chess.com"]

[Event "Titled Tuesday Blitz May 2 Late 2023"]
[White "Madaminov, Mukhiddin"]
[Black "Mendez Fortes, Eduardo Jesus"]
[WhiteFideId "14210703"]
[BlackFideId "3502376"]
[WhiteElo "2511"]
[BlackElo "2307"]
[Result "0-1"]
[Round "05"]
[TimeControl "180+2"]
[Date "2023.05.02"]
[WhiteClock "0:00:02"]
[BlackClock "0:00:04"]

1. d4 {[%clk 0:03:00]}  Nf6 {[%clk 0:02:59]} 2. Nc3 {[%clk 0:02:57]}  d5 {[%clk 0:02:59]} 3. Bf4 {[%clk 0:02:56]}  e6 {[%clk 0:03:00]} 4. Nb5 {[%clk 0:02:56]}  Na6 {[%clk 0:02:59]} 5. e3 {[%clk 0:02:56]}  Be7 {[%clk 0:02:54]} 6. Nf3 {[%clk 0:02:54]}  O-O {[%clk 0:02:53]} 7. Be2 {[%clk 0:02:55]}  c6 {[%clk 0:02:53]} 8. Nc3 {[%clk 0:02:55]}  Nb8 {[%clk 0:02:53]} 9. O-O {[%clk 0:02:50]}  b5 {[%clk 0:02:52]} 10. Bd3 {[%clk 0:02:40]}  Bb7 {[%clk 0:02:49]} 11. Ne2 {[%clk 0:02:38]}  Nbd7 {[%clk 0:02:47]} 12. Ng3 {[%clk 0:02:38]}  a6 {[%clk 0:02:47]} 13. a4 {[%clk 0:02:26]}  b4 {[%clk 0:02:46]} 14. c4 {[%clk 0:02:26]}  bxc3 {[%clk 0:02:45]} 15. bxc3 {[%clk 0:02:26]}  c5 {[%clk 0:02:46]} 16. a5 {[%clk 0:02:21]}  Bc6 {[%clk 0:02:40]} 17. Qe2 {[%clk 0:02:11]}  Ne4 {[%clk 0:02:36]} 18. h4 {[%clk 0:01:43]}  Nxc3 {[%clk 0:02:17]} 19. Qc2 {[%clk 0:01:43]}  Ne4 {[%clk 0:02:08]} 20. Nxe4 {[%clk 0:01:42]}  dxe4 {[%clk 0:02:09]} 21. Bxe4 {[%clk 0:01:43]}  Bxe4 {[%clk 0:02:09]} 22. Qxe4 {[%clk 0:01:43]}  Bxh4 {[%clk 0:01:55]} 23. Rfb1 {[%clk 0:01:27]}  cxd4 {[%clk 0:01:32]} 24. Nxd4 {[%clk 0:01:23]}  Bf6 {[%clk 0:01:18]} 25. Nc6 {[%clk 0:01:20]}  Qe8 {[%clk 0:01:10]} 26. Ra2 {[%clk 0:01:13]}  Nc5 {[%clk 0:01:06]} 27. Qf3 {[%clk 0:01:13]}  e5 {[%clk 0:01:06]} 28. Bxe5 {[%clk 0:01:01]}  Bxe5 {[%clk 0:01:06]} 29. Qd5 {[%clk 0:01:02]}  Ne4 {[%clk 0:00:53]} 30. Qxe5 {[%clk 0:00:19]}  Qxe5 {[%clk 0:00:51]} 31. Nxe5 {[%clk 0:00:19]}  Nc3 {[%clk 0:00:51]} 32. Rba1 {[%clk 0:00:12]}  Nxa2 {[%clk 0:00:51]} 33. Rxa2 {[%clk 0:00:13]}  Rac8 {[%clk 0:00:46]} 34. Rb2 {[%clk 0:00:11]}  Rfd8 {[%clk 0:00:43]} 35. Rb6 {[%clk 0:00:08]}  Rc1+ {[%clk 0:00:28]} 36. Kh2 {[%clk 0:00:08]}  f6 {[%clk 0:00:28]} 37. Nc6 {[%clk 0:00:08]}  Rd7 {[%clk 0:00:21]} 38. Rxa6 {[%clk 0:00:08]}  Kf7 {[%clk 0:00:20]} 39. Rb6 {[%clk 0:00:06]}  h5 {[%clk 0:00:15]} 40. a6 {[%clk 0:00:05]}  h4 {[%clk 0:00:15]} 41. Rb7 {[%clk 0:00:06]}  Ke6 {[%clk 0:00:13]} 42. Nd4+ {[%clk 0:00:06]}  Kd6 {[%clk 0:00:12]} 43. Nf5+ {[%clk 0:00:07]}  Kc6 {[%clk 0:00:13]} 44. Ne7+ {[%clk 0:00:04]}  Kd6 {[%clk 0:00:12]} 45. Nf5+ {[%clk 0:00:04]}  Kc6 {[%clk 0:00:12]} 46. Nd4+ {[%clk 0:00:05]}  Kd6 {[%clk 0:00:11]} 47. Rb8 {[%clk 0:00:04]}  Ra1 {[%clk 0:00:10]} 48. a7 {[%clk 0:00:03]}  Rdxa7 {[%clk 0:00:09]} 49. Nb5+ {[%clk 0:00:03]}  Ke5 {[%clk 0:00:09]} 50. Nxa7 {[%clk 0:00:04]}  Rxa7 {[%clk 0:00:09]} 51. Rb5+ {[%clk 0:00:04]}  Ke4 {[%clk 0:00:09]} 52. Kh3 {[%clk 0:00:05]}  g5 {[%clk 0:00:09]} 53. Kg4 {[%clk 0:00:05]}  Ra2 {[%clk 0:00:09]} 54. Rf5 {[%clk 0:00:05]}  Ra1 {[%clk 0:00:07]} 55. Rxf6 {[%clk 0:00:05]}  Rg1 {[%clk 0:00:08]} 56. Kxg5 {[%clk 0:00:04]}  h3 {[%clk 0:00:07]} 57. Rf4+ {[%clk 0:00:04]}  Ke5 {[%clk 0:00:06]} 58. Rf5+ {[%clk 0:00:03]}  Ke6 {[%clk 0:00:06]} 59. Rf6+ {[%clk 0:00:03]}  Ke5 {[%clk 0:00:06]} 60. Rh6 {[%clk 0:00:03]}  Rxg2+ {[%clk 0:00:06]} 61. Kh4 {[%clk 0:00:02]}  h2 {[%clk 0:00:06]} 62. Rh5+ {[%clk 0:00:01]}  Ke4 {[%clk 0:00:06]} 63. f3+ {[%clk 0:00:01]}  Kxf3 {[%clk 0:00:04]} 64. Rf5+ {[%clk 0:00:02]}  Ke2 {[%clk 0:00:04]} 0-1


[Site "https://www.chess.com"]

[Event "Titled Tuesday Blitz May 2 Late 2023"]
[White "Baskin, Robert"]
[Black "Yoo, Christopher Woojin"]
[WhiteFideId "24662402"]
[BlackFideId "30909694"]
[WhiteElo "2472"]
[BlackElo "2519"]
[Result "0-1"]
[Round "05"]
[TimeControl "180+2"]
[Date "2023.05.02"]
[WhiteClock "0:01:16"]
[BlackClock "0:01:30"]

1. e4 {[%clk 0:03:00]}  c5 {[%clk 0:02:58]} 2. Nf3 {[%clk 0:02:59]}  d6 {[%clk 0:02:57]} 3. d4 {[%clk 0:02:54]}  cxd4 {[%clk 0:02:58]} 4. Nxd4 {[%clk 0:02:54]}  Nf6 {[%clk 0:02:58]} 5. Nc3 {[%clk 0:02:54]}  Nc6 {[%clk 0:02:59]} 6. Bg5 {[%clk 0:02:53]}  e6 {[%clk 0:02:59]} 7. Qd3 {[%clk 0:02:52]}  a6 {[%clk 0:02:51]} 8. Nxc6 {[%clk 0:02:50]}  bxc6 {[%clk 0:02:50]} 9. O-O-O {[%clk 0:02:50]}  Be7 {[%clk 0:02:47]} 10. Qg3 {[%clk 0:02:50]}  Qb6 {[%clk 0:02:32]} 11. Bc4 {[%clk 0:02:47]}  Qc5 {[%clk 0:02:17]} 12. Be2 {[%clk 0:02:05]}  Nh5 {[%clk 0:02:09]} 13. Bxh5 {[%clk 0:01:54]}  Qxg5+ {[%clk 0:02:08]} 14. Qxg5 {[%clk 0:01:53]}  Bxg5+ {[%clk 0:02:09]} 15. Kb1 {[%clk 0:01:53]}  Ke7 {[%clk 0:02:07]} 16. h4 {[%clk 0:01:46]}  Bf6 {[%clk 0:02:05]} 17. Na4 {[%clk 0:01:46]}  Rb8 {[%clk 0:02:02]} 18. Be2 {[%clk 0:01:42]}  Rb4 {[%clk 0:01:56]} 19. b3 {[%clk 0:01:39]}  Rxe4 {[%clk 0:01:56]} 20. Bf3 {[%clk 0:01:38]}  Rxh4 {[%clk 0:01:56]} 21. Rhe1 {[%clk 0:01:32]}  d5 {[%clk 0:01:47]} 22. Nb6 {[%clk 0:01:31]}  Bb7 {[%clk 0:01:44]} 23. c4 {[%clk 0:01:31]}  Rd4 {[%clk 0:01:33]} 24. Rc1 {[%clk 0:01:25]}  Rd2 {[%clk 0:01:30]} 25. Rc2 {[%clk 0:01:15]}  Rxc2 {[%clk 0:01:30]} 26. Kxc2 {[%clk 0:01:16]}  Bd4 {[%clk 0:01:30]} 0-1


[Site "https://www.chess.com"]

[Event "Titled Tuesday Blitz May 2 Late 2023"]
[White "Zhigalko, Sergei"]
[Black "Lee, Linden"]
[WhiteFideId "13502956"]
[BlackFideId "30941830"]
[WhiteElo "2626"]
[BlackElo "1985"]
[Result "1-0"]
[Round "05"]
[TimeControl "180+2"]
[Date "2023.05.02"]
[WhiteClock "0:00:39"]
[BlackClock "0:00:05"]

1. e4 {[%clk 0:03:00]}  c6 {[%clk 0:03:00]} 2. d4 {[%clk 0:03:00]}  d5 {[%clk 0:03:00]} 3. e5 {[%clk 0:03:01]}  Bf5 {[%clk 0:03:00]} 4. Nf3 {[%clk 0:03:02]}  e6 {[%clk 0:03:00]} 5. Be2 {[%clk 0:03:03]}  Ne7 {[%clk 0:02:59]} 6. O-O {[%clk 0:03:03]}  Bg6 {[%clk 0:02:59]} 7. Nbd2 {[%clk 0:02:54]}  c5 {[%clk 0:02:57]} 8. dxc5 {[%clk 0:02:48]}  Nf5 {[%clk 0:02:55]} 9. Nb3 {[%clk 0:02:45]}  Nd7 {[%clk 0:02:55]} 10. c4 {[%clk 0:02:45]}  Bxc5 {[%clk 0:02:43]} 11. cxd5 {[%clk 0:02:42]}  exd5 {[%clk 0:02:39]} 12. Qxd5 {[%clk 0:02:33]}  Ne7 {[%clk 0:02:33]} 13. Qxb7 {[%clk 0:02:26]}  O-O {[%clk 0:02:32]} 14. Rd1 {[%clk 0:02:22]}  Bf5 {[%clk 0:02:18]} 15. Bg5 {[%clk 0:01:35]}  Rb8 {[%clk 0:01:27]} 16. Qa6 {[%clk 0:01:23]}  Rb6 {[%clk 0:00:48]} 17. Qa5 {[%clk 0:01:13]}  Bb4 {[%clk 0:00:46]} 18. Qxa7 {[%clk 0:01:13]}  f6 {[%clk 0:00:16]} 19. exf6 {[%clk 0:01:08]}  gxf6 {[%clk 0:00:17]} 20. Be3 {[%clk 0:01:00]}  Rb8 {[%clk 0:00:11]} 21. Nfd4 {[%clk 0:00:47]}  Nc8 {[%clk 0:00:06]} 22. Qa4 {[%clk 0:00:41]}  Bg6 {[%clk 0:00:05]} 23. Ne6 {[%clk 0:00:40]}  Qc7 {[%clk 0:00:05]} 24. Nxc7 {[%clk 0:00:39]} 1-0


[Site "https://www.chess.com"]